bitfinex/quotes_BTCUSD_20250902
["timestamp","ask_amount","ask_price","bid_price","bid_amount"]
[1756855069105,0.001,111360.0,111350.0,0.51887763]
[1756855071448,0.001,111360.0,111350.0,0.36687763]
[1756855071654,0.001,111360.0,111350.0,0.51674763]
[1756855072086,0.001,111360.0,111350.0,0.36184763]
[1756855072300,0.34981359,111360.0,111350.0,0.48689667]
[1756855072504,0.52941129,111360.0,111350.0,0.33485667]
[1756855072710,0.52941129,111360.0,111350.0,0.48689667]
[1756855073179,0.34981359,111360.0,111350.0,0.48689667]
[1756855076431,0.001,111360.0,111350.0,0.48689667]
[1756855076624,0.34981359,111360.0,111350.0,0.48689667]
[1756855077470,0.34981359,111360.0,111350.0,0.48983667]
[1756855078235,0.34981359,111360.0,111350.0,0.48689667]
[1756855078609,0.86941129,111360.0,111350.0,0.48689667]
[1756855078776,1.21822488,111360.0,111350.0,0.06332685]
[1756855079124,1.21822488,111360.0,111350.0,0.39490068]
[1756855079554,1.21822488,111360.0,111350.0,0.21528685]
[1756855079692,0.86941129,111360.0,111350.0,0.21528685]
[1756855080242,0.5205977,111360.0,111350.0,0.21528685]
[1756855080370,0.86941129,111360.0,111350.0,0.21528685]
[1756855081017,1.21822488,111360.0,111350.0,0.21528685]
[1756855081236,1.21822488,111360.0,111350.0,4.685e-05]
[1756855081596,1.27263046,111360.0,111350.0,4.685e-05]
[1756855082404,1.42459046,111360.0,111350.0,4.685e-05]
[1756855082625,1.51650645,111360.0,111350.0,4.685e-05]
[1756855082828,1.54215096,111360.0,111350.0,4.685e-05]
[1756855083365,1.91190337,111360.0,111350.0,4.685e-05]
[1756855083684,1.64644018,111360.0,111350.0,4.685e-05]
[1756855086723,1.53736527,111360.0,111350.0,4.685e-05]
[1756855086925,1.53636527,111360.0,111350.0,4.685e-05]
[1756855087143,1.53736527,111360.0,111350.0,4.685e-05]
[1756855087696,1.38548527,111360.0,111350.0,4.685e-05]
[1756855087878,1.53736527,111360.0,111350.0,4.685e-05]
[1756855088496,1.53636527,111360.0,111350.0,4.685e-05]
[1756855088728,1.50996058,111360.0,111350.0,4.685e-05]
[1756855089111,1.51096058,111360.0,111350.0,4.685e-05]
[1756855094442,1.35908058,111360.0,111350.0,4.685e-05]
[1756855094655,1.51096058,111360.0,111350.0,4.685e-05]
[1756855102328,1.5303198,111360.0,111350.0,4.685e-05]
[1756855102748,1.55772449,111360.0,111350.0,4.685e-05]
[1756855104877,1.583369,111360.0,111350.0,4.685e-05]
[1756855107751,1.62465223,111360.0,111350.0,4.685e-05]
[1756855107964,1.47277223,111360.0,111350.0,4.685e-05]
[1756855108163,1.59900772,111360.0,111350.0,4.685e-05]
[1756855108810,1.59900772,111360.0,111350.0,0.00303685]
[1756855109071,1.59900772,111360.0,111350.0,4.685e-05]
[1756855109245,1.62949058,111360.0,111350.0,4.685e-05]
[1756855110110,1.47761058,111360.0,111350.0,4.685e-05]
[1756855110320,1.62949058,111360.0,111350.0,0.00500685]
[1756855110754,1.62949058,111360.0,111350.0,0.00303685]
[1756855113617,1.47761058,111360.0,111350.0,0.00500685]
[1756855113824,1.62949058,111360.0,111350.0,0.00500685]
[1756855114134,1.62949058,111360.0,111350.0,0.00303685]
[1756855116600,1.62949058,111360.0,111350.0,4.685e-05]
[1756855117476,1.97922442,111360.0,111350.0,4.685e-05]
[1756855117698,1.93794119,111360.0,111350.0,4.685e-05]
[1756855119505,1.93794119,111360.0,111350.0,0.00506685]
[1756855119800,1.9105365,111360.0,111350.0,0.00506685]
[1756855121227,1.88637041,111360.0,111350.0,0.00506685]
[1756855121435,1.88637041,111360.0,111350.0,0.00311685]
[1756855123313,1.53092824,111360.0,111350.0,0.00506685]
[1756855123465,1.88004605,111360.0,111350.0,0.00506685]
[1756855123649,1.53092824,111360.0,111350.0,0.00311685]
[1756855125201,1.88004605,111360.0,111350.0,0.00311685]
[1756855130401,1.53092824,111360.0,111350.0,0.00506685]
[1756855137229,1.57166939,111360.0,111350.0,0.00506685]
[1756855137858,1.57166939,111360.0,111350.0,0.00311685]
[1756855138320,1.9207872,111360.0,111350.0,0.00311685]
[1756855139171,0.87343377,111360.0,111350.0,0.00311685]
[1756855139403,1.9207872,111360.0,111350.0,0.00506685]
[1756855140766,1.57166939,111360.0,111350.0,0.00506685]
[1756855141092,1.57166939,111360.0,111350.0,0.00311685]
[1756855143540,1.9207872,111360.0,111350.0,4.685e-05]
[1756855143738,1.94819189,111360.0,111350.0,4.685e-05]
[1756855144435,0.90083846,111360.0,111350.0,0.00311685]
[1756855144568,1.59907408,111360.0,111350.0,0.00311685]
[1756855144779,0.90083846,111360.0,111350.0,0.00506685]
[1756855145087,1.59907408,111360.0,111350.0,0.00506685]
[1756855145697,1.59907408,111360.0,111350.0,0.00311685]
[1756855147379,1.59899408,111360.0,111350.0,0.00506685]
[1756855147531,1.57158939,111360.0,111350.0,0.00506685]
[1756855147729,1.41978939,111360.0,111350.0,0.00506685]
[1756855148034,1.57158939,111360.0,111350.0,0.00506685]
[1756855148664,1.57158939,111360.0,111350.0,0.00311685]
[1756855148840,1.57158939,111360.0,111350.0,0.00515685]
[1756855149019,1.57158939,111360.0,111350.0,0.00311685]
[1756855149418,1.94811189,111360.0,111350.0,4.685e-05]
[1756855149640,1.9737564,111360.0,111350.0,4.685e-05]
[1756855151899,1.94811189,111360.0,111350.0,4.685e-05]
[1756855154572,1.59899408,111360.0,111350.0,4.685e-05]
[1756855155681,1.59899408,111360.0,111350.0,0.00307685]
[1756855158716,1.24987627,111360.0,111350.0,0.00511685]
[1756855158839,1.57158939,111360.0,111350.0,0.00511685]
[1756855162906,1.57158939,111360.0,111350.0,0.00307685]
[1756855163820,1.57158939,111360.0,111350.0,0.00511685]
[1756855164426,1.57158939,111360.0,111350.0,0.00307685]
[1756855164561,1.59899408,111360.0,111350.0,0.00307685]
[1756855164767,1.94811189,111360.0,111350.0,0.00307685]
[1756855166420,1.59899408,111360.0,111350.0,0.00307685]
[1756855168123,0.90075846,111360.0,111350.0,0.00511685]
[1756855168304,1.59899408,111360.0,111350.0,0.00511685]
[1756855169425,1.94811189,111360.0,111350.0,0.00511685]
[1756855170055,1.95694855,111360.0,111350.0,0.00511685]
[1756855175703,0.90959512,111360.0,111350.0,0.00511685]
[1756855175894,1.45603074,111360.0,111350.0,0.00511685]
[1756855176112,1.95690855,111360.0,111350.0,0.00511685]
[1756855176317,1.60779074,111360.0,111350.0,0.00511685]
[1756855176523,1.95690855,111360.0,111350.0,0.00511685]
[1756855176878,1.95686855,111360.0,111350.0,0.00511685]
[1756855178273,1.95686855,111360.0,111350.0,0.00307685]
[1756855178476,1.98251303,111360.0,111350.0,4.685e-05]
[1756855179571,1.63345544,111360.0,111350.0,4.685e-05]
[1756855185188,1.60781096,111360.0,111350.0,0.00538685]
[1756855187062,1.60781096,111360.0,111350.0,0.00328685]
[1756855191227,1.60781096,111360.0,111350.0,0.00538685]
[1756855192497,1.45609096,111360.0,111350.0,0.00538685]
[1756855192663,1.60777096,111360.0,111350.0,0.00538685]
[1756855193108,1.45609096,111360.0,111350.0,0.00538685]
[1756855193327,1.45609096,111360.0,111350.0,4.685e-05]
[1756855193541,1.98256336,111360.0,111350.0,4.685e-05]
[1756855193747,2.06230781,111360.0,111350.0,4.685e-05]
[1756855193950,2.02992081,111360.0,111350.0,4.685e-05]
[1756855194359,2.01305406,111360.0,111350.0,4.685e-05]
[1756855197603,2.01297326,111360.0,111350.0,4.685e-05]
[1756855197915,2.10488925,111360.0,111350.0,4.685e-05]
[1756855198979,2.10488149,111360.0,111350.0,4.685e-05]
[1756855200234,2.0807154,111360.0,111350.0,4.685e-05]
[1756855201114,2.06135618,111360.0,111350.0,4.685e-05]
[1756855201319,2.08075844,111360.0,111350.0,4.685e-05]
[1756855204974,2.08075844,111360.0,111350.0,0.00328685]
[1756855205613,2.51765844,111360.0,111350.0,0.00328685]
[1756855205853,2.16851052,111360.0,111350.0,4.685e-05]
[1756855206365,2.51765844,111360.0,111350.0,1e-08]
[1756855206590,2.17184774,111360.0,111350.0,1e-08]
[1756855206743,2.20423474,111360.0,111350.0,1e-08]
[1756855207347,2.20323474,111360.0,111350.0,1e-08]
[1756855207757,2.18098191,111360.0,111350.0,1e-08]
[1756855207956,2.22956658,111360.0,111350.0,1e-08]
[1756855208136,2.22656658,111360.0,111350.0,1e-08]
[1756855208340,2.27856658,111360.0,111350.0,1e-08]
[1756855208679,2.24417958,111360.0,111350.0,1e-08]
[1756855209233,2.27949399,111360.0,111350.0,1e-08]
[1756855209433,2.27949399,111360.0,111330.0,0.01]
[1756855209434,0.51962996,111340.0,111330.0,0.01]
[1756855209634,1.64216251,111340.0,111330.0,0.0101405]
[1756855209871,1.69521168,111340.0,111330.0,0.0101405]
[1756855210068,1.72222527,111340.0,111330.0,0.0101405]
[1756855210744,1.72222527,111340.0,111330.0,0.0111405]
[1756855211479,1.72222527,111340.0,111330.0,0.0121405]
[1756855212137,1.72691299,111340.0,111330.0,0.0121405]
[1756855212352,1.72691299,111340.0,111330.0,0.0111405]
[1756855212570,1.72791299,111340.0,111330.0,0.0151505]
[1756855213005,1.72691299,111340.0,111330.0,0.0130805]
[1756855213869,1.57527299,111340.0,111330.0,0.0130805]
[1756855214094,1.6995483,111340.0,111330.0,0.0130805]
[1756855215199,1.72695299,111340.0,111330.0,0.0130805]
[1756855215388,1.57527299,111340.0,111330.0,0.0130805]
[1756855215561,1.72691299,111340.0,111330.0,0.0130805]
[1756855217811,1.72691299,111340.0,111330.0,0.0101405]
[1756855218023,2.07606091,111340.0,111330.0,1e-08]
[1756855218227,2.07606091,111340.0,111300.0,0.02389]
[1756855218228,0.20060105,111320.0,111310.0,0.00294]
[1756855218436,1.48245288,111320.0,111310.0,0.00294]
[1756855218652,1.50985757,111320.0,111310.0,0.00501]
[1756855218858,1.53687227,111320.0,111310.0,0.00501]
[1756855219060,1.57825936,111320.0,111310.0,0.00501]
[1756855219267,1.58294739,111320.0,111310.0,0.00501]
[1756855219784,1.58294739,111320.0,111310.0,0.00601]
[1756855220173,1.60859187,111320.0,111310.0,0.00601]
[1756855222143,1.60390384,111320.0,111310.0,0.00569791]
[1756855222347,1.62327458,111320.0,111310.0,0.00569791]
[1756855223110,1.62796284,111320.0,111310.0,0.00569791]
[1756855225246,1.62830284,111320.0,111310.0,0.00569791]
[1756855225446,1.62796284,111320.0,111310.0,0.00569791]
[1756855226306,1.62830284,111320.0,111310.0,0.00569791]
[1756855226703,1.62796284,111320.0,111310.0,0.00569791]
[1756855231539,1.62830284,111320.0,111310.0,0.00569791]
[1756855234275,1.47666284,111320.0,111310.0,0.00569791]
[1756855234545,1.62796284,111320.0,111310.0,0.00569791]
[1756855236325,1.65850803,111320.0,111310.0,0.00569791]
[1756855237710,1.50686803,111320.0,111310.0,0.00569791]
[1756855237929,1.65846803,111320.0,111310.0,0.00569791]
[1756855238545,0.80857219,111320.0,111310.0,0.00569791]
[1756855238672,1.30932011,111320.0,111310.0,0.00569791]
[1756855238874,1.65880803,111320.0,111310.0,0.00569791]
[1756855239279,1.65846803,111320.0,111310.0,0.00569791]
[1756855239527,2.00841863,111320.0,111310.0,0.00569791]
[1756855246846,2.00875863,111320.0,111310.0,0.00569791]
[1756855247171,2.02562848,111320.0,111310.0,0.00569791]
[1756855247377,2.00875863,111320.0,111310.0,0.00569791]
[1756855248511,2.00841863,111320.0,111310.0,0.00569791]
[1756855249813,0.96017219,111320.0,111310.0,0.00569791]
[1756855250018,2.00841863,111320.0,111310.0,0.00569791]
[1756855253473,2.00875863,111320.0,111310.0,0.00569791]
[1756855255870,2.00841863,111320.0,111310.0,0.00569791]
[1756855256161,2.00875863,111320.0,111310.0,0.00569791]
[1756855260195,2.00875863,111320.0,111310.0,0.001]
[1756855261159,0.54061719,111310.0,111300.0,0.00046944]
[1756855261363,1.50225488,111310.0,111300.0,0.00355944]
[1756855261578,1.52967166,111310.0,111300.0,0.00355944]
[1756855261778,1.52967166,111310.0,111300.0,0.00562944]
[1756855262338,1.55668719,111310.0,111300.0,0.00562944]
[1756855262861,1.58255595,111310.0,111300.0,0.00562944]
[1756855263070,1.58255595,111310.0,111280.0,0.07322]
[1756855263071,0.17971066,111290.0,111280.0,0.01299]
[1756855263282,1.50235824,111290.0,111280.0,0.01303686]
[1756855263484,1.55116877,111290.0,111280.0,0.01510686]
[1756855263690,1.58287949,111290.0,111280.0,0.01510686]
[1756855263999,0.88370853,111290.0,111280.0,0.01510686]
[1756855264261,1.58253949,111290.0,111280.0,0.01510686]
[1756855264647,1.58253949,111290.0,111280.0,0.01710686]
[1756855265531,1.43101949,111290.0,111280.0,0.01710686]
[1756855265748,1.20570723,111290.0,111280.0,0.01710686]
[1756855268308,1.55512271,111290.0,111280.0,0.01710686]
[1756855275385,1.55546271,111290.0,111280.0,0.01710686]
[1756855275594,1.55512271,111290.0,111280.0,0.01710686]
[1756855276643,1.55546271,111290.0,111280.0,0.01710686]
[1756855277844,1.55546271,111290.0,111280.0,0.01194686]
[1756855277845,1.60873616,111290.0,111280.0,0.01194686]
[1756855278936,1.60873616,111290.0,111280.0,0.01094686]
[1756855279337,1.60873616,111290.0,111280.0,0.00994686]
[1756855279568,1.97775152,111290.0,111280.0,0.01094686]
[1756855280079,1.97775152,111290.0,111280.0,0.00994686]
[1756855280503,1.97775152,111290.0,111280.0,0.01094686]
[1756855280895,1.97775152,111290.0,111280.0,0.00994686]
[1756855281299,1.97975152,111290.0,111280.0,0.00994686]
[1756855281658,2.00116985,111290.0,111280.0,0.00994686]
[1756855281860,2.00216985,111290.0,111280.0,0.00994686]
[1756855284168,2.00216985,111290.0,111270.0,0.0004]
[1756855284329,1.86933265,111280.0,111270.0,0.00054071]
[1756855284540,1.88872253,111280.0,111270.0,0.00054071]
[1756855284739,1.88906253,111280.0,111270.0,0.00054071]
[1756855285831,1.88902253,111280.0,111270.0,0.00054071]
[1756855287238,1.88902253,111280.0,111270.0,0.00154071]
[1756855287937,1.91604875,111280.0,111270.0,0.00154071]
[1756855288382,1.91604875,111280.0,111270.0,0.00123067]
[1756855288810,2.00034757,111280.0,111270.0,0.00123067]
[1756855289293,2.34976305,111280.0,111270.0,0.00123067]
[1756855290338,3.04859386,111280.0,111270.0,0.00123067]
[1756855290541,3.04390405,111280.0,111270.0,0.00123067]
[1756855290856,1.99565761,111280.0,111270.0,0.00123067]
[1756855291064,2.0875736,111280.0,111270.0,0.00123067]
[1756855291928,2.0875736,111280.0,111270.0,0.00443067]
[1756855293126,2.0875736,111280.0,111270.0,0.00123067]
[1756855293344,2.0875736,111280.0,111270.0,0.00073067]
[1756855293568,1.84421761,111280.0,111270.0,0.00606067]
[1756855293787,1.99565761,111280.0,111270.0,0.00606067]
[1756855294000,1.84421761,111280.0,111270.0,0.00606067]
[1756855294190,1.99531761,111280.0,111270.0,0.00606067]
[1756855294443,1.96944885,111280.0,111270.0,0.00606067]
[1756855294658,2.40634885,111280.0,111270.0,0.00606067]
[1756855294862,2.40668885,111280.0,111270.0,0.00606067]
[1756855295955,2.40634885,111280.0,111270.0,0.00606067]
[1756855296705,2.40668885,111280.0,111270.0,0.00606067]
[1756855297413,2.40634885,111280.0,111270.0,0.00606067]
[1756855298386,2.49826484,111280.0,111270.0,0.00606067]
[1756855298836,2.40634885,111280.0,111270.0,0.00606067]
[1756855299064,2.37894416,111280.0,111270.0,0.00606067]
[1756855299300,2.31558416,111280.0,111270.0,0.00606067]
[1756855299950,2.29464534,111280.0,111270.0,0.00606067]
[1756855300380,2.32205003,111280.0,111270.0,0.00606067]
[1756855301546,1.97307909,111280.0,111270.0,0.00606067]
[1756855303579,1.97341909,111280.0,111270.0,0.00073067]
[1756855303797,1.62241093,111280.0,111270.0,0.00073067]
[1756855304015,1.62220093,111280.0,111270.0,0.00073067]
[1756855304527,1.62220093,111280.0,111270.0,0.00390067]
[1756855304747,1.58331458,111280.0,111270.0,0.00073067]
[1756855306309,1.58962902,111280.0,111270.0,0.00073067]
[1756855307346,1.61385828,111280.0,111270.0,0.00073067]
[1756855307760,1.61385828,111280.0,111270.0,0.00390067]
[1756855307963,1.61385828,111280.0,111270.0,0.00601067]
[1756855308386,1.60484984,111280.0,111270.0,0.00601067]
[1756855308588,1.45340984,111280.0,111270.0,0.00601067]
[1756855308793,1.42566515,111280.0,111270.0,0.00601067]
[1756855309026,1.52967322,111280.0,111270.0,0.00601067]
[1756855309495,1.97289381,111280.0,111270.0,0.00601067]
[1756855310016,1.96657322,111280.0,111270.0,0.00601067]
[1756855310755,1.96657322,111280.0,111270.0,0.00558857]
[1756855311233,1.81517322,111280.0,111270.0,0.00558857]
[1756855311485,1.9712627,111280.0,111270.0,0.00558857]
[1756855311743,1.99866739,111280.0,111270.0,0.00558857]
[1756855314488,2.02452406,111280.0,111270.0,0.00558857]
[1756855315467,1.87312406,111280.0,111270.0,0.00558857]
[1756855315774,2.02452406,111280.0,111270.0,0.00558857]
[1756855317378,1.87312406,111280.0,111270.0,0.00558857]
[1756855317599,2.02452406,111280.0,111270.0,0.00558857]
[1756855320499,1.9712227,111280.0,111270.0,0.00558857]
[1756855320681,1.9712227,111280.0,111270.0,0.00520868]
[1756855321019,1.2719472,111280.0,111270.0,0.00520868]
[1756855321295,1.9712227,111280.0,111270.0,0.00520868]
[1756855324673,1.8198627,111280.0,111270.0,0.00520868]
[1756855324906,1.9712227,111280.0,111270.0,0.00520868]
[1756855325762,2.02493406,111280.0,111270.0,0.00309868]
[1756855325984,0.54068178,111270.0,111260.0,0.0004]
[1756855326196,1.48323327,111270.0,111260.0,0.00361687]
[1756855326530,1.48323327,111270.0,111260.0,0.00572687]
[1756855326742,1.51025759,111270.0,111260.0,0.00572687]
[1756855327352,1.51025759,111270.0,111260.0,0.00672687]
[1756855328026,1.56396895,111270.0,111260.0,0.00244687]
[1756855328243,1.58338091,111270.0,111260.0,0.00244687]
[1756855328681,0.17975912,111260.0,111250.0,0.00942789]
[1756855328908,0.68075687,111260.0,111250.0,0.00947465]
[1756855329092,0.68075687,111260.0,111250.0,0.01155465]
[1756855329304,1.03039462,111260.0,111250.0,0.01155465]
[1756855329475,1.03039462,111260.0,111250.0,0.01466465]
[1756855329685,1.03947414,111260.0,111250.0,0.01466465]
[1756855329895,1.06649958,111260.0,111250.0,0.01466465]
[1756855330918,1.06649958,111260.0,111250.0,0.01666465]
[1756855331524,1.07118959,111260.0,111250.0,0.01866465]
[1756855332376,0.72155184,111260.0,111250.0,0.01866465]
[1756855332600,1.07118959,111260.0,111250.0,0.01866465]
[1756855333029,1.11172846,111260.0,111250.0,0.01866465]
[1756855334056,1.56503327,111260.0,111250.0,0.01866465]
[1756855334281,1.61829463,111260.0,111250.0,0.01658465]
[1756855334706,1.61829463,111260.0,111250.0,0.01866465]
[1756855335317,1.61784463,111260.0,111250.0,0.01866465]
[1756855335729,1.59198796,111260.0,111250.0,0.01866465]
[1756855336098,1.56458327,111260.0,111250.0,0.01866465]
[1756855337064,1.56503327,111260.0,111250.0,0.01866465]
[1756855338612,1.56458327,111260.0,111250.0,0.01866465]
[1756855346170,1.21494552,111260.0,111250.0,0.01866465]
[1756855347184,1.56458327,111260.0,111250.0,0.01866465]
[1756855347512,1.56503327,111260.0,111250.0,0.01866465]
[1756855355985,1.56450327,111260.0,111250.0,0.01866465]
[1756855356581,1.21486552,111260.0,111250.0,0.01866465]
[1756855357017,1.21531552,111260.0,111250.0,0.01866465]
[1756855357677,1.21486552,111260.0,111250.0,0.01866465]
[1756855359022,1.21531552,111260.0,111250.0,0.01866465]
[1756855360214,1.56495327,111260.0,111250.0,0.01866465]
[1756855360820,1.56450327,111260.0,111250.0,0.01866465]
[1756855361020,1.21486552,111260.0,111250.0,0.01866465]
[1756855362618,1.21531552,111260.0,111250.0,0.01866465]
[1756855363561,1.91487773,111260.0,111250.0,0.01866465]
[1756855364319,1.91442773,111260.0,111250.0,0.01866465]
[1756855364758,1.91487773,111260.0,111250.0,0.01866465]
[1756855368115,1.91487773,111260.0,111250.0,0.01658465]
[1756855369801,1.91487773,111260.0,111250.0,0.01347465]
[1756855370232,1.9407344,111260.0,111250.0,0.01347465]
[1756855370852,1.9407344,111260.0,111250.0,0.01660465]
[1756855372834,1.9407344,111260.0,111250.0,0.01857465]
[1756855380525,1.9402044,111260.0,111250.0,0.01857465]
[1756855380795,1.3005596,111260.0,111250.0,0.01857465]
[1756855389655,1.25094121,111260.0,111250.0,0.01857465]
[1756855390625,1.60067453,111260.0,111250.0,0.01857465]
[1756855393273,1.60112453,111260.0,111250.0,0.01857465]
[1756855393707,1.60067453,111260.0,111250.0,0.01857465]
[1756855400649,1.25094121,111260.0,111250.0,0.01857465]
[1756855401421,0.55147457,111260.0,111250.0,0.01857465]
[1756855401640,1.25094121,111260.0,111250.0,0.01857465]
[1756855411860,0.55147457,111260.0,111250.0,0.16969465]
[1756855412064,1.25094121,111260.0,111250.0,0.16969465]
[1756855417268,1.25139121,111260.0,111250.0,0.16969465]
[1756855421505,1.25094121,111260.0,111250.0,0.16969465]
[1756855422016,1.25094121,111260.0,111250.0,0.34946993]
[1756855422836,1.25094121,111260.0,111250.0,0.16969465]
[1756855423562,0.90111856,111260.0,111250.0,0.16969465]
[1756855425455,0.55147457,111260.0,111250.0,0.34946993]
[1756855425710,0.72135944,111260.0,111250.0,0.34946993]
[1756855426829,0.90111856,111260.0,111250.0,0.34946993]
[1756855428832,0.37171545,111260.0,111250.0,0.34946993]
[1756855429055,0.90111856,111260.0,111250.0,0.34946993]
[1756855430032,0.37171545,111260.0,111250.0,0.34946993]
[1756855430247,0.90111856,111260.0,111250.0,0.34946993]
[1756855432051,0.72135944,111260.0,111250.0,0.34946993]
[1756855432267,0.694334,111260.0,111250.0,0.34946993]
[1756855432911,0.00469001,111260.0,111250.0,0.44138592]
[1756855433131,0.00469001,111260.0,111250.0,0.46513592]
[1756855433357,0.86937171,111280.0,111270.0,0.17974296]
[1756855433570,0.90107736,111280.0,111270.0,0.39954296]
[1756855435733,0.72134964,111280.0,111270.0,0.39954296]
[1756855436142,0.37170565,111280.0,111270.0,0.39954296]
[1756855436357,0.72134964,111280.0,111270.0,0.39954296]
[1756855436922,0.37170565,111280.0,111270.0,0.39954296]
[1756855437218,0.72134964,111280.0,111270.0,0.39954296]
[1756855439822,0.72134964,111280.0,111270.0,0.40848791]
[1756855440972,0.37170565,111280.0,111270.0,0.40848791]
[1756855441228,0.72134964,111280.0,111270.0,0.40848791]
[1756855442144,0.69433207,111280.0,111270.0,0.5004039]
[1756855442361,0.34468808,111280.0,111270.0,0.5004039]
[1756855442574,0.69433207,111280.0,111270.0,0.5004039]
[1756855445513,0.00468808,111280.0,111270.0,0.5004039]
[1756855445712,0.68964399,111290.0,111280.0,0.17972681]
[1756855445916,0.68964399,111290.0,111280.0,0.18187681]
[1756855446127,0.34,111290.0,111280.0,0.2770428]
[1756855446338,0.68964399,111290.0,111280.0,0.2770428]
[1756855447006,0.69064399,111290.0,111280.0,0.2770428]
[1756855447443,0.69264399,111290.0,111280.0,0.2770428]
[1756855449010,0.343,111290.0,111280.0,0.2770428]
[1756855449239,0.69264399,111290.0,111280.0,0.2770428]
[1756855450520,0.69264399,111290.0,111280.0,0.4280028]
[1756855450917,0.69309399,111290.0,111280.0,0.2770428]
[1756855451249,0.69309399,111290.0,111280.0,0.4280028]
[1756855453165,0.87280465,111290.0,111280.0,0.4280028]
[1756855457632,0.87235465,111290.0,111280.0,0.4280028]
[1756855457846,0.87280465,111290.0,111280.0,0.4280028]
[1756855462746,0.87235465,111290.0,111280.0,0.4280028]
[1756855463876,0.69264399,111290.0,111280.0,0.4280028]
[1756855464992,0.69264399,111290.0,111280.0,0.2770428]
[1756855465206,0.69264399,111290.0,111280.0,0.4280028]
[1756855465931,0.87235465,111290.0,111280.0,0.2770428]
[1756855466134,0.87235465,111290.0,111280.0,0.4279628]
[1756855466665,0.69264399,111290.0,111280.0,0.4279628]
[1756855467549,0.003,111290.0,111280.0,0.4279628]
[1756855467765,0.35264399,111290.0,111280.0,0.4279628]
[1756855476833,0.35264399,111290.0,111280.0,0.45497261]
[1756855483212,0.35264399,111290.0,111280.0,0.30405261]
[1756855483418,0.35264399,111290.0,111280.0,0.45493261]
[1756855484712,0.35309399,111290.0,111280.0,0.30405261]
[1756855484922,0.53280465,111290.0,111280.0,0.2716428]
[1756855485126,0.53280465,111290.0,111280.0,0.4225228]
[1756855485510,0.88205558,111290.0,111280.0,0.4225228]
[1756855486116,0.88205558,111290.0,111280.0,0.09191599]
[1756855486359,1.22233558,111290.0,111280.0,0.15088]
[1756855486990,1.22233558,111290.0,111270.0,0.24310296]
[1756855486991,0.17972681,111280.0,111270.0,0.24310296]
[1756855487223,1.56851919,111280.0,111270.0,0.30615599]
[1756855489624,1.21907173,111280.0,111270.0,0.30615599]
[1756855490362,1.22797827,111280.0,111270.0,0.30615599]
[1756855491633,1.57742573,111280.0,111270.0,0.21424]
[1756855491839,1.58239421,111280.0,111270.0,0.21424]
[1756855492040,1.58211421,111280.0,111270.0,0.21424]
[1756855493282,1.60913158,111280.0,111270.0,0.21424]
[1756855504544,1.60913158,111280.0,111270.0,0.06336]
[1756855504745,1.60913158,111280.0,111270.0,0.21424]
[1756855505937,2.65775396,111280.0,111270.0,0.06336]
[1756855506145,2.65775396,111280.0,111270.0,0.21424]
[1756855508089,2.65775396,111280.0,111270.0,0.15088]
[1756855509810,2.6837074,111280.0,111270.0,0.15088]
[1756855510224,1.63536502,111280.0,111270.0,0.15088]
[1756855510441,1.60941158,111280.0,111270.0,0.15088]
[1756855510656,1.63536502,111280.0,111270.0,0.15088]
[1756855511119,1.60913158,111280.0,111270.0,0.15088]
[1756855511353,1.72728101,111280.0,111270.0,0.15088]
[1756855511586,2.09766729,111280.0,111270.0,0.15088]
[1756855512303,2.79656221,111280.0,111270.0,0.15088]
[1756855512517,0.17975912,111260.0,111250.0,0.07589465]
[1756855512723,1.2285515,111260.0,111250.0,0.22677465]
[1756855513163,1.26026495,111260.0,111250.0,0.22677465]
[1756855513370,1.26026495,111260.0,111250.0,0.07283465]
[1756855513575,1.26026495,111260.0,111250.0,0.22571465]
[1756855513790,1.26026495,111260.0,111250.0,0.22890465]
[1756855513996,1.26026495,111260.0,111250.0,0.23090465]
[1756855516573,1.26026495,111260.0,111250.0,0.22771465]
[1756855525833,1.26026495,111260.0,111250.0,0.23090465]
[1756855528380,1.26026495,111260.0,111250.0,0.08002465]
[1756855528583,1.26026495,111260.0,111250.0,0.23090465]
[1756855529595,1.26026495,111260.0,111250.0,0.23290465]
[1756855529823,1.25981495,111260.0,111250.0,0.23290465]
[1756855530256,1.26026495,111260.0,111250.0,0.23290465]
[1756855530688,1.25981495,111260.0,111250.0,0.23290465]
[1756855540832,0.91036749,111260.0,111250.0,0.23290465]
[1756855547642,0.5611186,111260.0,111250.0,0.23290465]
[1756855548434,0.5615686,111260.0,111250.0,0.23090465]
[1756855548641,0.5615686,111260.0,111250.0,0.23294465]
[1756855549348,0.5615686,111260.0,111250.0,0.23090465]
[1756855551960,0.5615686,111260.0,111250.0,0.23294465]
[1756855554962,0.5611186,111260.0,111250.0,0.23294465]
[1756855559164,0.21147257,111260.0,111250.0,0.23294465]
[1756855559374,0.5611186,111260.0,111250.0,0.23294465]
[1756855560309,0.5615686,111260.0,111250.0,0.08206465]
[1756855560532,0.5615686,111260.0,111250.0,0.22763465]
[1756855561110,0.5615686,111260.0,111250.0,0.23269465]
[1756855567028,0.5611186,111260.0,111250.0,0.23269465]
[1756855568909,0.5615686,111260.0,111250.0,0.23065465]
[1756855570533,0.5615686,111260.0,111250.0,0.23279465]
[1756855571384,0.21192257,111260.0,111250.0,0.23279465]
[1756855571596,0.5615686,111260.0,111250.0,0.23279465]
[1756855572977,0.5611186,111260.0,111250.0,0.23279465]
[1756855574906,1.5611186,111260.0,111250.0,0.23279465]
[1756855576531,1.5615686,111260.0,111250.0,0.23279465]
[1756855577762,1.5615686,111260.0,111250.0,0.08199465]
[1756855577971,1.5615686,111260.0,111250.0,0.07683465]
[1756855578185,1.5615686,111260.0,111250.0,0.22759465]
[1756855580884,1.5615686,111260.0,111250.0,0.23080465]
[1756855581595,1.5615686,111260.0,111250.0,0.22759465]
[1756855582226,1.5615686,111260.0,111250.0,0.23080465]
[1756855582549,1.5615686,111260.0,111250.0,0.08004465]
[1756855582763,1.99376459,111260.0,111250.0,0.01347465]
[1756855582898,1.99376459,111260.0,111250.0,0.16423465]
[1756855583332,1.99348459,111260.0,111250.0,0.16423465]
[1756855583755,1.99303459,111260.0,111250.0,0.16637465]
[1756855583956,1.99303459,111260.0,111250.0,0.16958465]
[1756855584565,1.55147257,111260.0,111250.0,0.16958465]
[1756855584778,1.9011186,111260.0,111250.0,0.16958465]
[1756855592570,1.9015686,111260.0,111250.0,0.01882465]
[1756855592825,1.9015686,111260.0,111250.0,0.01347465]
[1756855593033,1.9015686,111260.0,111250.0,0.16423465]
[1756855593250,1.9018486,111260.0,111250.0,0.16423465]
[1756855593690,1.9015686,111260.0,111250.0,0.16423465]
[1756855595490,1.9015686,111260.0,111250.0,0.01347465]
[1756855595696,1.9015686,111260.0,111250.0,0.16423465]
[1756855596043,1.9015686,111260.0,111250.0,0.01347465]
[1756855596279,1.9015686,111260.0,111250.0,0.16423465]
[1756855597202,1.9015686,111260.0,111250.0,0.01347465]
[1756855597414,1.9015686,111260.0,111250.0,0.16423465]
[1756855599354,1.9015686,111260.0,111250.0,0.16419465]
[1756855607175,1.9015686,111260.0,111250.0,0.16734465]
[1756855607903,2.25130229,111260.0,111250.0,0.16734465]
[1756855609975,2.25130229,111260.0,111250.0,0.16946465]
[1756855613900,2.25130229,111260.0,111250.0,0.16942465]
[1756855615035,1.55147257,111260.0,111250.0,0.16942465]